{"text_format":"3","workbook":"xlsx","n_sheets":2,"sheets":["Berendezési tárgyak készlete","Beállítások"],"not_rendered":{"defined_names":4},"read":"whole","date_system":"1900"}

{"sheet":"Berendezési tárgyak készlete","index":0,"n_rows":35,"n_cols":6,"rows_kept":35,"merged":[[0,1,2,2],[0,4,0,5]]}
[]
[{"$nulls":4},"Az ennél régebbi tételek kiemelése:"]
[{"$nulls":4},4]
[]
[null,"BERENDEZÉSI TÁRGY AZONOSÍTÓJA","TÉTEL NEVE","HOZZÁRENDELÉS","KIADÁS DÁTUMA","TÉTEL KORA"]
[null,"TÉTEL0001","szék","1. alkalmazott",{"$f":"TODAY()-25","v":"2012-12-09"},{"$f":"IF(táblázatEszközleltár[[#This Row],[KIADÁS DÁTUMA]]<>\"\",TODAY()-táblázatEszközleltár[[#This Row],[KIADÁS DÁTUMA]],\"\")","v":{"v":25,"d":"25 nap"}}]
[null,"TÉTEL0002","lézernyomtató","2. alkalmazott",{"$f":"TODAY()-479","v":"2011-09-12"},{"$f":"IF(táblázatEszközleltár[[#This Row],[KIADÁS DÁTUMA]]<>\"\",TODAY()-táblázatEszközleltár[[#This Row],[KIADÁS DÁTUMA]],\"\")","v":{"v":479,"d":"479 nap"}}]
[null,"TÉTEL0003","képolvasó","3. alkalmazott",{"$f":"TODAY()-177","v":"2012-07-10"},{"$f":"IF(táblázatEszközleltár[[#This Row],[KIADÁS DÁTUMA]]<>\"\",TODAY()-táblázatEszközleltár[[#This Row],[KIADÁS DÁTUMA]],\"\")","v":{"v":177,"d":"177 nap"}}]
[null,"TÉTEL0004","lézernyomtató","7. alkalmazott",{"$f":"TODAY()-18","v":"2012-12-16"},{"$f":"IF(táblázatEszközleltár[[#This Row],[KIADÁS DÁTUMA]]<>\"\",TODAY()-táblázatEszközleltár[[#This Row],[KIADÁS DÁTUMA]],\"\")","v":{"v":18,"d":"18 nap"}}]
[null,"TÉTEL0005","kávéfőző","20. alkalmazott",{"$f":"TODAY()-227","v":"2012-05-21"},{"$f":"IF(táblázatEszközleltár[[#This Row],[KIADÁS DÁTUMA]]<>\"\",TODAY()-táblázatEszközleltár[[#This Row],[KIADÁS DÁTUMA]],\"\")","v":{"v":227,"d":"227 nap"}}]
[null,"TÉTEL0006","képolvasó","14. alkalmazott",{"$f":"TODAY()-50","v":"2012-11-14"},{"$f":"IF(táblázatEszközleltár[[#This Row],[KIADÁS DÁTUMA]]<>\"\",TODAY()-táblázatEszközleltár[[#This Row],[KIADÁS DÁTUMA]],\"\")","v":{"v":50,"d":"50 nap"}}]
[null,"TÉTEL0007","tábla","4. alkalmazott",{"$f":"TODAY()-120","v":"2012-09-05"},{"$f":"IF(táblázatEszközleltár[[#This Row],[KIADÁS DÁTUMA]]<>\"\",TODAY()-táblázatEszközleltár[[#This Row],[KIADÁS DÁTUMA]],\"\")","v":{"v":120,"d":"120 nap"}}]
[null,"TÉTEL0008","másológép","12. alkalmazott",{"$f":"TODAY()-499","v":"2011-08-23"},{"$f":"IF(táblázatEszközleltár[[#This Row],[KIADÁS DÁTUMA]]<>\"\",TODAY()-táblázatEszközleltár[[#This Row],[KIADÁS DÁTUMA]],\"\")","v":{"v":499,"d":"499 nap"}}]
[null,"TÉTEL0009","további monitor","8. alkalmazott",{"$f":"TODAY()-30","v":"2012-12-04"},{"$f":"IF(táblázatEszközleltár[[#This Row],[KIADÁS DÁTUMA]]<>\"\",TODAY()-táblázatEszközleltár[[#This Row],[KIADÁS DÁTUMA]],\"\")","v":{"v":30,"d":"30 nap"}}]
[null,"TÉTEL0010","rajztábla","19. alkalmazott",{"$f":"TODAY()-50","v":"2012-11-14"},{"$f":"IF(táblázatEszközleltár[[#This Row],[KIADÁS DÁTUMA]]<>\"\",TODAY()-táblázatEszközleltár[[#This Row],[KIADÁS DÁTUMA]],\"\")","v":{"v":50,"d":"50 nap"}}]
[null,"TÉTEL0011","másológép","12. alkalmazott",{"$f":"TODAY()-450","v":"2011-10-11"},{"$f":"IF(táblázatEszközleltár[[#This Row],[KIADÁS DÁTUMA]]<>\"\",TODAY()-táblázatEszközleltár[[#This Row],[KIADÁS DÁTUMA]],\"\")","v":{"v":450,"d":"450 nap"}}]
[null,"TÉTEL0012","levélpapírok","18. alkalmazott",{"$f":"TODAY()-420","v":"2011-11-10"},{"$f":"IF(táblázatEszközleltár[[#This Row],[KIADÁS DÁTUMA]]<>\"\",TODAY()-táblázatEszközleltár[[#This Row],[KIADÁS DÁTUMA]],\"\")","v":{"v":420,"d":"420 nap"}}]
[null,"TÉTEL0013","további monitor","8. alkalmazott",{"$f":"TODAY()-250","v":"2012-04-28"},{"$f":"IF(táblázatEszközleltár[[#This Row],[KIADÁS DÁTUMA]]<>\"\",TODAY()-táblázatEszközleltár[[#This Row],[KIADÁS DÁTUMA]],\"\")","v":{"v":250,"d":"250 nap"}}]
[null,"TÉTEL0014","kávéfőző","9. alkalmazott",{"$f":"TODAY()-45","v":"2012-11-19"},{"$f":"IF(táblázatEszközleltár[[#This Row],[KIADÁS DÁTUMA]]<>\"\",TODAY()-táblázatEszközleltár[[#This Row],[KIADÁS DÁTUMA]],\"\")","v":{"v":45,"d":"45 nap"}}]
[null,"TÉTEL0015","levélpapírok","13. alkalmazott",{"$f":"TODAY()-502","v":"2011-08-20"},{"$f":"IF(táblázatEszközleltár[[#This Row],[KIADÁS DÁTUMA]]<>\"\",TODAY()-táblázatEszközleltár[[#This Row],[KIADÁS DÁTUMA]],\"\")","v":{"v":502,"d":"502 nap"}}]
[null,"TÉTEL0016","képolvasó","1. alkalmazott",{"$f":"TODAY()-350","v":"2012-01-19"},{"$f":"IF(táblázatEszközleltár[[#This Row],[KIADÁS DÁTUMA]]<>\"\",TODAY()-táblázatEszközleltár[[#This Row],[KIADÁS DÁTUMA]],\"\")","v":{"v":350,"d":"350 nap"}}]
[null,"TÉTEL0017","másológép","19. alkalmazott",{"$f":"TODAY()-125","v":"2012-08-31"},{"$f":"IF(táblázatEszközleltár[[#This Row],[KIADÁS DÁTUMA]]<>\"\",TODAY()-táblázatEszközleltár[[#This Row],[KIADÁS DÁTUMA]],\"\")","v":{"v":125,"d":"125 nap"}}]
[null,"TÉTEL0018","rajztábla","15. alkalmazott",{"$f":"TODAY()-90","v":"2012-10-05"},{"$f":"IF(táblázatEszközleltár[[#This Row],[KIADÁS DÁTUMA]]<>\"\",TODAY()-táblázatEszközleltár[[#This Row],[KIADÁS DÁTUMA]],\"\")","v":{"v":90,"d":"90 nap"}}]
[null,"TÉTEL0019","szék","16. alkalmazott",{"$f":"TODAY()-730","v":"2011-01-04"},{"$f":"IF(táblázatEszközleltár[[#This Row],[KIADÁS DÁTUMA]]<>\"\",TODAY()-táblázatEszközleltár[[#This Row],[KIADÁS DÁTUMA]],\"\")","v":{"v":730,"d":"730 nap"}}]
[null,"TÉTEL0020","portörlő (1 készlet)","3. alkalmazott",{"$f":"TODAY()-540","v":"2011-07-13"},{"$f":"IF(táblázatEszközleltár[[#This Row],[KIADÁS DÁTUMA]]<>\"\",TODAY()-táblázatEszközleltár[[#This Row],[KIADÁS DÁTUMA]],\"\")","v":{"v":540,"d":"540 nap"}}]
[null,"TÉTEL0021","lézernyomtató","7. alkalmazott",{"$f":"TODAY()-18","v":"2012-12-16"},{"$f":"IF(táblázatEszközleltár[[#This Row],[KIADÁS DÁTUMA]]<>\"\",TODAY()-táblázatEszközleltár[[#This Row],[KIADÁS DÁTUMA]],\"\")","v":{"v":18,"d":"18 nap"}}]
[null,"TÉTEL0022","hordozható számítógép","8. alkalmazott",{"$f":"TODAY()-283","v":"2012-03-26"},{"$f":"IF(táblázatEszközleltár[[#This Row],[KIADÁS DÁTUMA]]<>\"\",TODAY()-táblázatEszközleltár[[#This Row],[KIADÁS DÁTUMA]],\"\")","v":{"v":283,"d":"283 nap"}}]
[null,"TÉTEL0023","levélpapírok","9. alkalmazott",{"$f":"TODAY()-479","v":"2011-09-12"},{"$f":"IF(táblázatEszközleltár[[#This Row],[KIADÁS DÁTUMA]]<>\"\",TODAY()-táblázatEszközleltár[[#This Row],[KIADÁS DÁTUMA]],\"\")","v":{"v":479,"d":"479 nap"}}]
[null,"TÉTEL0024","lézernyomtató","19. alkalmazott",{"$f":"TODAY()-355","v":"2012-01-14"},{"$f":"IF(táblázatEszközleltár[[#This Row],[KIADÁS DÁTUMA]]<>\"\",TODAY()-táblázatEszközleltár[[#This Row],[KIADÁS DÁTUMA]],\"\")","v":{"v":355,"d":"355 nap"}}]
[null,"TÉTEL0025","tábla","7. alkalmazott",{"$f":"TODAY()-28","v":"2012-12-06"},{"$f":"IF(táblázatEszközleltár[[#This Row],[KIADÁS DÁTUMA]]<>\"\",TODAY()-táblázatEszközleltár[[#This Row],[KIADÁS DÁTUMA]],\"\")","v":{"v":28,"d":"28 nap"}}]
[null,"TÉTEL0026","rajztábla","8. alkalmazott",{"$f":"TODAY()-28","v":"2012-12-06"},{"$f":"IF(táblázatEszközleltár[[#This Row],[KIADÁS DÁTUMA]]<>\"\",TODAY()-táblázatEszközleltár[[#This Row],[KIADÁS DÁTUMA]],\"\")","v":{"v":28,"d":"28 nap"}}]
[null,"TÉTEL0027","hordozható számítógép","19. alkalmazott",{"$f":"TODAY()-736","v":"2010-12-29"},{"$f":"IF(táblázatEszközleltár[[#This Row],[KIADÁS DÁTUMA]]<>\"\",TODAY()-táblázatEszközleltár[[#This Row],[KIADÁS DÁTUMA]],\"\")","v":{"v":736,"d":"736 nap"}}]
[null,"TÉTEL0028","tábla","12. alkalmazott",{"$f":"TODAY()-68","v":"2012-10-27"},{"$f":"IF(táblázatEszközleltár[[#This Row],[KIADÁS DÁTUMA]]<>\"\",TODAY()-táblázatEszközleltár[[#This Row],[KIADÁS DÁTUMA]],\"\")","v":{"v":68,"d":"68 nap"}}]
[null,"TÉTEL0029","képolvasó","14. alkalmazott",{"$f":"TODAY()-67","v":"2012-10-28"},{"$f":"IF(táblázatEszközleltár[[#This Row],[KIADÁS DÁTUMA]]<>\"\",TODAY()-táblázatEszközleltár[[#This Row],[KIADÁS DÁTUMA]],\"\")","v":{"v":67,"d":"67 nap"}}]
[null,"TÉTEL0030","kávéfőző","3. alkalmazott",{"$f":"TODAY()-149","v":"2012-08-07"},{"$f":"IF(táblázatEszközleltár[[#This Row],[KIADÁS DÁTUMA]]<>\"\",TODAY()-táblázatEszközleltár[[#This Row],[KIADÁS DÁTUMA]],\"\")","v":{"v":149,"d":"149 nap"}}]

{"sheet":"Beállítások","index":1,"n_rows":23,"n_cols":4,"rows_kept":23}
[]
[]
[null,"ALKALMAZOTTAK",null,"TÉTELEK"]
[null,"1. alkalmazott",null,"szék"]
[null,"2. alkalmazott",null,"kávéfőző"]
[null,"3. alkalmazott",null,"másológép"]
[null,"4. alkalmazott",null,"asztali számítógép"]
[null,"5. alkalmazott",null,"portörlő (1 készlet)"]
[null,"6. alkalmazott",null,"további monitor"]
[null,"7. alkalmazott",null,"tintasugaras nyomtató"]
[null,"8. alkalmazott",null,"hordozható számítógép"]
[null,"9. alkalmazott",null,"lézernyomtató"]
[null,"10. alkalmazott",null,"filctollak (3 csomag)"]
[null,"11. alkalmazott",null,"képolvasó"]
[null,"12. alkalmazott",null,"levélpapírok"]
[null,"13. alkalmazott",null,"tábla"]
[null,"14. alkalmazott",null,"USB meghajtó"]
[null,"15. alkalmazott",null,"rajztábla"]
[null,"16. alkalmazott"]
[null,"17. alkalmazott"]
[null,"18. alkalmazott"]
[null,"19. alkalmazott"]
[null,"20. alkalmazott"]